fUSD/lending_fUSD_20240921
["ID","MTS","AMOUNT","RATE_DAILY","PERIOD"]
[338780266,1726912239414,-500.0,0.00012999,2]
[338780267,1726912239424,-3409.57,0.00012999,2]
[338780268,1726912239434,-500.0,0.00012999,2]
[338780269,1726912239443,-3409.57,0.00012999,2]
[338780270,1726912239460,-3409.57,0.00012999,2]
[338780271,1726912239469,-500.0,0.00012999,2]
[338780272,1726912239478,-500.0,0.00012999,2]
[338780273,1726912239488,-500.0,0.00012999,2]
[338780274,1726912239498,-500.0,0.00012999,2]
[338780275,1726912239507,-500.0,0.00012999,2]
[338780276,1726912239516,-500.0,0.00012999,2]
[338780277,1726912239525,-3783.37,0.00012999,2]
[338780278,1726912239535,-3783.37,0.00012999,2]
[338780279,1726912239544,-3783.37,0.00012999,2]
[338780280,1726912239553,-500.0,0.00012999,2]
[338780281,1726912239562,-500.0,0.00012999,2]
[338780282,1726912239571,-500.0,0.00012999,2]
[338780283,1726912239580,-500.0,0.00012999,2]
[338780284,1726912239589,-228.38286975,0.00012999,2]
[338780285,1726912239598,-500.0,0.00012999,2]
[338780286,1726912239607,-500.0,0.00012999,2]
[338780287,1726912239616,-500.0,0.00012999,2]
[338780288,1726912239626,-500.0,0.00012999,2]
[338780289,1726912239635,-500.0,0.00012999,2]
[338780290,1726912239644,-500.0,0.00012999,2]
[338780291,1726912239653,-500.0,0.00012999,2]
[338780292,1726912239662,-500.0,0.00012999,2]
[338780293,1726912239672,-500.0,0.00012999,2]
[338780294,1726912239683,-637.49888971,0.00012999,2]
[338780295,1726912239695,-500.0,0.00012999,2]
[338780296,1726912239705,-500.0,0.00012999,2]
[338780297,1726912239714,-513.92127961,0.00012999,2]
[338780298,1726912239724,-382.63799535,0.00012999,2]
[338780299,1726912239734,-500.0,0.00012999,2]
[338780300,1726912239744,-500.0,0.00012999,2]
[338780301,1726912239753,-500.0,0.00012999,2]
[338780302,1726912239763,-500.0,0.00012999,2]
[338780303,1726912239772,-500.0,0.00012999,2]
[338780304,1726912239782,-500.0,0.00012999,2]
[338780305,1726912239791,-500.0,0.00012999,2]
[338780306,1726912239801,-500.0,0.00012999,2]
[338780307,1726912239810,-500.0,0.00012999,2]
[338780308,1726912239820,-500.0,0.00012999,2]
[338780309,1726912239829,-500.0,0.00012999,2]
[338780310,1726912239839,-500.0,0.00012999,2]
[338780311,1726912239848,-500.0,0.00012999,2]
[338780312,1726912239858,-445.53532519,0.00012999,2]
[338780313,1726912239868,-500.0,0.00012999,2]
[338780314,1726912239878,-500.0,0.00012999,2]
[338780315,1726912239888,-500.0,0.00012999,2]
[338780316,1726912239898,-500.0,0.00012999,2]
[338780317,1726912239907,-500.0,0.00012999,2]
[338780318,1726912239917,-500.0,0.00012999,2]
[338780319,1726912239927,-500.0,0.00012999,2]
[338780320,1726912239937,-500.0,0.00012999,2]
[338780321,1726912239948,-500.0,0.00012999,2]
[338780322,1726912239957,-500.0,0.00012999,2]
[338780323,1726912239967,-3624.09,0.00012999,2]
[338780324,1726912239977,-3624.09,0.00012999,2]
[338780325,1726912239987,-3624.09,0.00012999,2]
[338780326,1726912239996,-3624.09,0.00012999,2]
[338780327,1726912240006,-500.0,0.00012999,2]
[338780328,1726912240016,-500.0,0.00012999,2]
[338780329,1726912240026,-500.0,0.00012999,2]
[338780330,1726912240035,-500.0,0.00012999,2]
[338780331,1726912240045,-500.0,0.00012999,2]
[338780332,1726912240055,-500.0,0.00012999,2]
[338780333,1726912240064,-500.0,0.00012999,2]
[338780334,1726912240074,-500.0,0.00012999,2]
[338780335,1726912240083,-500.0,0.00012999,2]
[338780336,1726912240092,-500.0,0.00012999,2]
[338780337,1726912240102,-500.0,0.00012999,2]
[338780338,1726912240111,-500.0,0.00012999,2]
[338780339,1726912240121,-500.0,0.00012999,2]
[338780340,1726912240131,-500.0,0.00012999,2]
[338780341,1726912240140,-816.23,0.00012999,2]
[338780342,1726912240150,-816.23,0.00012999,2]
[338780343,1726912240161,-816.23,0.00012999,2]
[338780344,1726912240171,-816.23,0.00012999,2]
[338780345,1726912240180,-500.0,0.00012999,2]
[338780346,1726912240190,-500.0,0.00012999,2]
[338780347,1726912240200,-500.0,0.00012999,2]
[338780348,1726912240210,-3994.69,0.00012999,2]
[338780349,1726912240220,-3994.69,0.00012999,2]
[338780350,1726912240230,-3994.69,0.00012999,2]
[338780351,1726912240239,-3994.69,0.00012999,2]
[338780352,1726912240249,-500.0,0.00012999,2]
[338780353,1726912240259,-584.67579837,0.00012999,2]
[338780354,1726912240268,-500.0,0.00012999,2]
[338780355,1726912240278,-500.0,0.00012999,2]
[338780356,1726912240288,-522.77,0.00012999,2]
[338780357,1726912240299,-6061.04,0.00012999,2]
[338780358,1726912240309,-6061.04,0.00012999,2]
[338780359,1726912240319,-6061.04,0.00012999,2]
[338780360,1726912240328,-6061.04,0.00012999,2]
[338780361,1726912240338,-500.0,0.00012999,2]
[338780362,1726912240348,-500.0,0.00012999,2]
[338780363,1726912240357,-500.0,0.00012999,2]
[338780364,1726912240366,-500.0,0.00012999,2]
[338780365,1726912240376,-500.0,0.00012999,2]
[338780366,1726912240386,-579.41207945,0.00012999,2]
[338780367,1726912240397,-500.0,0.00012999,2]
[338780368,1726912240407,-381.95003502,0.00012999,2]
[338780369,1726912240416,-9951.4,0.00012999,2]
[338780370,1726912240426,-9951.4,0.00012999,2]
[338780371,1726912240435,-9951.4,0.00012999,2]
[338780372,1726912240446,-9951.4,0.00012999,2]
[338780374,1726912240456,-500.0,0.00012999,2]
[338780376,1726912240465,-440.99461235,0.00012999,2]
[338780378,1726912240476,-500.0,0.00012999,2]
[338780380,1726912240485,-500.0,0.00012999,2]
[338780382,1726912240495,-500.0,0.00012999,2]
[338780384,1726912240505,-500.0,0.00012999,2]
[338780386,1726912240514,-159.53892721,0.00012999,2]
[338780388,1726912240523,-500.0,0.00012999,2]
[338780390,1726912240532,-500.0,0.00012999,2]
[338780392,1726912240542,-500.0,0.00012999,2]
[338780394,1726912240551,-636.00127366,0.00012999,2]
[338780396,1726912240561,-3103.6,0.00012999,2]
[338780397,1726912240570,-6381.8,0.00012999,2]
[338780399,1726912240579,-3103.6,0.00012999,2]
[338780401,1726912240589,-6381.8,0.00012999,2]
[338780403,1726912240599,-3103.6,0.00012999,2]
[338780405,1726912240609,-6381.8,0.00012999,2]
[338780407,1726912240618,-500.0,0.00012999,2]
[338780409,1726912240628,-3103.6,0.00012999,2]
[338780411,1726912240638,-6381.8,0.00012999,2]
[338780413,1726912240647,-500.0,0.00012999,2]
[338780415,1726912240657,-500.0,0.00012999,2]
[338780418,1726912240667,-500.0,0.00012999,2]
[338780419,1726912240677,-500.0,0.00012999,2]
[338780422,1726912240687,-499.99999999,0.00012999,2]
[338780424,1726912240696,-500.0,0.00012999,2]
[338780425,1726912240706,-500.0,0.00012999,2]
[338780427,1726912240715,-500.0,0.00012999,2]
[338780429,1726912240725,-2266.6,0.00012999,2]
[338780431,1726912240734,-2266.6,0.00012999,2]
[338780433,1726912240743,-2266.6,0.00012999,2]
[338780435,1726912240753,-2266.6,0.00012999,2]
[338780437,1726912240762,-500.0,0.00012999,2]
[338780439,1726912240771,-500.0,0.00012999,2]
[338780441,1726912240781,-243.10689502,0.00012999,2]
[338780443,1726912240790,-500.0,0.00012999,2]
[338780445,1726912240800,-500.0,0.00012999,2]
[338780448,1726912240811,-500.0,0.00012999,2]
[338780450,1726912240821,-190.85052689,0.00012999,2]
[338780452,1726912240830,-500.0,0.00012999,2]
[338780453,1726912240839,-500.0,0.00012999,2]
[338780455,1726912240849,-500.0,0.00012999,2]
[338780457,1726912240858,-500.0,0.00012999,2]
[338780459,1726912240868,-500.0,0.00012999,2]
[338780461,1726912240877,-552.33955351,0.00012999,2]
[338780463,1726912240886,-500.0,0.00012999,2]
[338780465,1726912240896,-500.0,0.00012999,2]
[338780467,1726912240906,-500.0,0.00012999,2]
[338780469,1726912240915,-215.95135331,0.00012999,2]
[338780471,1726912240924,-500.0,0.00012999,2]
[338780473,1726912240934,-500.0,0.00012999,2]
[338780475,1726912240944,-500.0,0.00012999,2]
[338780477,1726912240954,-500.0,0.00012999,2]
[338780479,1726912240963,-702.11,0.00012999,2]
[338780481,1726912240972,-702.11,0.00012999,2]
[338780483,1726912240981,-702.11,0.00012999,2]
[338780485,1726912240991,-702.11,0.00012999,2]
[338780487,1726912241000,-500.0,0.00012999,2]
[338780489,1726912241009,-500.0,0.00012999,2]
[338780491,1726912241019,-500.0,0.00012999,2]
[338780494,1726912241030,-500.0,0.00012999,2]
[338780496,1726912241040,-500.0,0.00012999,2]
[338780498,1726912241051,-500.0,0.00012999,2]
[338780500,1726912241061,-625.43623614,0.00012999,2]
[338780502,1726912241071,-200.0,0.00013,2]
[338780504,1726912241081,-311.4,0.00013,2]
[338780506,1726912241092,-1007.7,0.00013,2]
[338780508,1726912241102,-242.3,0.00013027,2]
[338780510,1726912241112,-241.36,0.00013166,2]
[338780512,1726912241121,-161.04936566,0.00013185,2]
[338780514,1726912241132,-194.75826541,0.0001329,2]
[338780516,1726912241142,-500.0,0.00013469,2]
[338780518,1726912241152,-500.0,0.00013469,2]
[338780520,1726912241161,-500.0,0.00013469,2]
[338780523,1726912241171,-500.0,0.00013469,2]
[338780525,1726912241182,-500.0,0.00013469,2]
[338780527,1726912241192,-500.0,0.00013469,2]
[338780529,1726912241202,-500.0,0.00013469,2]
[338780531,1726912241212,-500.0,0.00013469,2]
[338780533,1726912241222,-500.0,0.00013469,2]
[338780535,1726912241234,-3366.35,0.0001347,2]
[338780537,1726912241245,-500.0,0.0001347,2]
[338780539,1726912241255,-500.0,0.0001347,2]
[338780542,1726912241264,-3770.56,0.0001347,2]
[338780544,1726912241275,-500.0,0.0001347,2]
[338780546,1726912241285,-5480.71,0.0001347,2]
[338780548,1726912241295,-501.86,0.0001347,2]
[338780550,1726912241305,-2821.7,0.0001347,2]
[338780552,1726912241315,-4290.93,0.0001347,2]
[338780554,1726912241324,-500.0,0.0001347,2]
[338780556,1726912241334,-949.96,0.0001347,2]
[338780558,1726912241344,-13331.55,0.0001347,2]
[338780560,1726912241353,-500.0,0.0001347,2]
[338780562,1726912241362,-500.0,0.0001347,2]
[338780564,1726912241372,-3409.57,0.0001347,2]
[338780566,1726912241382,-500.0,0.0001347,2]
[338780568,1726912241391,-3783.37,0.0001347,2]
[338780570,1726912241406,-500.0,0.0001347,2]
[338780572,1726912241415,-500.0,0.0001347,2]
[338780599,1726912241425,-500.0,0.0001347,2]
[338780603,1726912241696,-3624.09,0.0001347,2]
[338780605,1726912241706,-500.0,0.0001347,2]
[338780607,1726912241715,-500.0,0.0001347,2]
[338780609,1726912241725,-816.23,0.0001347,2]
[338780610,1726912241734,-500.0,0.0001347,2]
[338780612,1726912241743,-3994.69,0.0001347,2]
[338780614,1726912241752,-6061.04,0.0001347,2]
[338780616,1726912241761,-9951.4,0.0001347,2]
[338780618,1726912241770,-3103.6,0.0001347,2]
[338780620,1726912241780,-6381.8,0.0001347,2]
[338780622,1726912241790,-2266.6,0.0001347,2]
[338780624,1726912241799,-189.66,0.0001347,2]
[338780626,1726912241809,-500.0,0.0001347,2]
[338780628,1726912241820,-702.11,0.0001347,2]
[338780630,1726912241829,-500.0,0.0001347,2]
[338780633,1726912241840,-161.04936566,0.00013471,2]
[338780635,1726912241850,-1666.39,0.00013699,2]
[338780637,1726912241859,-1333.11,0.00013699,2]
[338780639,1726912241869,-200.0,0.00013699,2]
[338780641,1726912241880,-2751.0,0.00013699,2]
[338780643,1726912241891,-150.0,0.00013699,2]
[338780645,1726912241902,-161.04936566,0.00013757,2]
[338780647,1726912241911,-613.98,0.000138,2]
[338780649,1726912241921,-91652.1720716,0.000138,2]
[338780651,1726912241930,-10183.5746746,0.00013868,2]
[338780653,1726912241940,-40734.2986985,0.00013878,2]
[338780655,1726912241951,-153.49,0.00013878,2]
[338780656,1726912241960,-3366.35,0.00013878,2]
[338780657,1726912241970,-501.86,0.00013878,2]
[338780658,1726912241979,-391.3,0.00013878,2]
[338780659,1726912241988,-949.96,0.00013878,2]
[338780660,1726912241998,-3409.57,0.00013878,2]
[338780661,1726912242008,-3783.37,0.00013878,2]
[338780662,1726912242018,-500.0,0.00013888,2]
[338780663,1726912242028,-500.0,0.00013888,2]
[338780664,1726912242037,-3770.56,0.00013888,2]
[338780665,1726912242048,-500.0,0.00013888,2]
[338780666,1726912242059,-5480.71,0.00013888,2]
[338780667,1726912242069,-2821.7,0.00013888,2]
[338780668,1726912242079,-4290.93,0.00013888,2]
[338780669,1726912242088,-13331.55,0.00013888,2]
[338780670,1726912242098,-500.0,0.00013888,2]
[338780671,1726912242108,-500.0,0.00013888,2]
[338780672,1726912242120,-500.0,0.00013888,2]
[338780673,1726912242132,-500.0,0.00013888,2]
[338780674,1726912242142,-500.0,0.00013888,2]
[338780675,1726912242152,-500.0,0.00013888,2]
[338780676,1726912242161,-3624.09,0.00013888,2]
[338780677,1726912242171,-500.0,0.00013888,2]
[338780678,1726912242181,-500.0,0.00013888,2]
[338780679,1726912242191,-816.23,0.00013888,2]
[338780680,1726912242201,-3994.69,0.00013888,2]
[338780681,1726912242211,-6061.04,0.00013888,2]
[338780682,1726912242220,-9951.4,0.00013888,2]
[338780683,1726912242229,-3103.6,0.00013888,2]
[338780684,1726912242239,-6381.8,0.00013888,2]
[338780685,1726912242249,-2266.6,0.00013888,2]
[338780686,1726912242258,-500.0,0.00013888,2]
[338780687,1726912242267,-702.11,0.00013888,2]
[338780688,1726912242276,-500.0,0.00013888,2]
[338780689,1726912242285,-40734.2986985,0.0001389,2]
[338780690,1726912242294,-3366.35,0.00013898,2]
[338780691,1726912242304,-501.86,0.00013898,2]
[338780692,1726912242313,-949.96,0.00013898,2]
[338780693,1726912242322,-3409.57,0.00013898,2]
[338780694,1726912242332,-3783.37,0.00013898,2]
[338780695,1726912242341,-37173.4057928,0.000139,2]
[338780696,1726912242352,-500.0,0.00013904,2]
[338780697,1726912242361,-151.77,0.00013918,30]
[338780698,1726912242371,-10183.5746746,0.00013924,2]
[338780699,1726912242380,-18586.7028964,0.00013924,2]
[338780700,1726912242390,-10183.5746746,0.00013934,2]
[338780701,1726912242402,-18586.7028964,0.00013934,2]
[338780702,1726912242412,-5357.42997267,0.00013943,2]
[338780703,1726912242430,-15009.71937653,0.00013943,2]
[338780704,1726912242439,-18586.7028964,0.00013943,2]
[338780705,1726912242450,-3366.35,0.00013944,2]
[338780706,1726912242459,-501.86,0.00013944,2]
[338780707,1726912242468,-949.96,0.00013944,2]
[338780708,1726912242478,-3409.57,0.00013944,2]
[338780709,1726912242489,-3783.37,0.00013944,2]
[338780710,1726912242499,-30550.7240239,0.00013953,2]
[338780711,1726912242508,-37173.4057928,0.00013953,2]
[338780712,1726912242517,-356.12884951,0.00013953,2]
[338780713,1726912242527,-500.0,0.00013963,2]
[338780714,1726912242536,-500.0,0.00013963,2]
[338780715,1726912242545,-3770.56,0.00013963,2]
[338780716,1726912242555,-500.0,0.00013963,2]
[338780717,1726912242565,-5480.71,0.00013963,2]
[338780718,1726912242574,-2821.7,0.00013963,2]
[338780719,1726912242583,-4290.93,0.00013963,2]
[338780720,1726912242592,-13331.55,0.00013963,2]
[338780721,1726912242601,-500.0,0.00013963,2]
[338780722,1726912242611,-500.0,0.00013963,2]
[338780723,1726912242620,-500.0,0.00013963,2]
[338780724,1726912242629,-500.0,0.00013963,2]
[338780725,1726912242638,-500.0,0.00013963,2]
[338780726,1726912242647,-500.0,0.00013963,2]
[338780727,1726912242657,-3624.09,0.00013963,2]
[338780728,1726912242666,-500.0,0.00013963,2]
[338780729,1726912242675,-500.0,0.00013963,2]
[338780730,1726912242685,-816.23,0.00013963,2]
[338780731,1726912242694,-3994.69,0.00013963,2]
[338780732,1726912242705,-6061.04,0.00013963,2]
[338780733,1726912242715,-9951.4,0.00013963,2]
[338780734,1726912242724,-3103.6,0.00013963,2]
[338780735,1726912242735,-6381.8,0.00013963,2]
[338780736,1726912242744,-2266.6,0.00013963,2]
[338780737,1726912242755,-500.0,0.00013963,2]
[338780738,1726912242764,-702.11,0.00013963,2]
[338780739,1726912242773,-500.0,0.00013963,2]
[338780740,1726912242783,-161.04936566,0.00014042,2]
[338780741,1726912242794,-160.381514,0.00014049,2]
[338780742,1726912242803,-165.836326,0.00014049,2]
[338780743,1726912242813,-160.153296,0.00014049,2]
[338780744,1726912242826,-229.242389,0.00014049,2]
[338780745,1726912242835,-150.0,0.00014059,2]
[338780746,1726912242846,-700.0,0.00014178,2]
[338780747,1726912242855,-10183.5746746,0.00014192,2]
[338780748,1726912242865,-153.49,0.00014192,2]
[338780749,1726912242874,-10183.5746746,0.00014203,2]
[338780750,1726912242883,-18586.7028964,0.00014203,2]
[338780752,1726912242893,-10183.5746746,0.00014212,2]
[338780754,1726912242902,-18586.7028964,0.00014212,2]
[338780756,1726912242911,-625.0,0.00014222,2]
[338780757,1726912242920,-1262.0,0.00014222,2]
[338780758,1726912242929,-448.0,0.00014222,2]
[338780759,1726912242939,-847.758,0.00014222,2]
[338780760,1726912242957,-809.0,0.00014222,2]
[338780761,1726912242966,-558.0,0.00014222,2]
[338780762,1726912242976,-150.0,0.00014222,2]
[338780763,1726912242985,-933.0,0.00014222,2]
[338780764,1726912242994,-553.0,0.00014222,2]
[338780765,1726912243003,-1903.0,0.00014222,2]
[338780766,1726912243012,-806.0,0.00014222,2]
[338780767,1726912243021,-248.0,0.00014222,2]
[338780768,1726912243030,-3347.0,0.00014222,2]
[338780769,1726912243039,-150.0,0.00014222,2]
[338780770,1726912243049,-912.905,0.00014222,2]
[338780772,1726912243059,-150.0,0.00014222,2]
[338780773,1726912243068,-13490.0,0.00014222,2]
[338780774,1726912243077,-5867.0,0.00014222,2]
[338780775,1726912243086,-1080.0,0.00014222,2]
[338780776,1726912243095,-150.0,0.00014222,2]
[338780777,1726912243104,-229.242389,0.00014225,2]
[338780778,1726912243113,-3366.35,0.00014246,2]
[338780779,1726912243122,-501.86,0.00014246,2]
[338780780,1726912243132,-949.96,0.00014246,2]
[338780781,1726912243141,-3409.57,0.00014246,2]
[338780782,1726912243151,-3783.37,0.00014246,2]
[338780783,1726912243163,-420.0,0.00014255,2]
[338780784,1726912243172,-18586.7028964,0.00014257,2]
[338780785,1726912243181,-1000.0,0.00014265,2]
[338780786,1726912243190,-176.93,0.00014266,2]
[338780787,1726912243207,-3366.35,0.00014267,2]
[338780788,1726912243216,-501.86,0.00014267,2]
[338780789,1726912243226,-949.96,0.00014267,2]
[338780790,1726912243235,-3409.57,0.00014267,2]
[338780791,1726912243244,-3783.37,0.00014267,2]
[338780792,1726912243254,-18586.7028964,0.00014267,2]
[338780793,1726912243263,-18586.7028964,0.00014277,2]
[338780794,1726912243273,-37173.4057928,0.00014277,2]
[338780795,1726912243282,-532129.44211606,0.00014287,2]
[338780824,1726912243803,-5859.10567957,0.00014287,2]
[338780826,1726912243814,-229029.77283116,0.00014287,2]
[338780828,1726912243824,-500.0,0.00014287,2]
[338780830,1726912243833,-500.0,0.00014287,2]
[338780832,1726912243843,-3770.56,0.00014287,2]
[338780834,1726912243852,-500.0,0.00014287,2]
[338780836,1726912243861,-5480.71,0.00014287,2]
[338780838,1726912243870,-2821.7,0.00014287,2]
[338780839,1726912243879,-4290.93,0.00014287,2]
[338780841,1726912243889,-13331.55,0.00014287,2]
[338780843,1726912243898,-500.0,0.00014287,2]
[338780845,1726912243908,-500.0,0.00014287,2]
[338780847,1726912243917,-500.0,0.00014287,2]
[338780849,1726912243926,-500.0,0.00014287,2]
[338780851,1726912243935,-430.87639739,0.00014287,2]
[338780853,1726912243945,-500.0,0.00014287,2]
[338780855,1726912243954,-500.0,0.00014287,2]
[338780857,1726912243963,-500.0,0.00014287,2]
[338780858,1726912243972,-816.23,0.00014287,2]
[338780859,1726912243981,-3994.69,0.00014287,2]
[338780860,1726912243990,-6061.04,0.00014287,2]
[338780861,1726912243999,-9951.4,0.00014287,2]
[338780862,1726912244007,-3103.6,0.00014287,2]
[338780863,1726912244017,-6381.8,0.00014287,2]
[338780864,1726912244026,-2266.6,0.00014287,2]
[338780865,1726912244035,-500.0,0.00014287,2]
[338780866,1726912244044,-702.11,0.00014287,2]
[338780867,1726912244054,-173.18222128,0.00014287,2]
[338780868,1726912244063,-3366.35,0.00014297,2]
[338780869,1726912244073,-501.86,0.00014297,2]
[338780870,1726912244082,-949.96,0.00014297,2]
[338780871,1726912244091,-3409.57,0.00014297,2]
[338780872,1726912244100,-3783.37,0.00014297,2]
[338780873,1726912244109,-161.04936566,0.00014328,2]
[338780874,1726912244118,-161.4271414,0.00014384,2]
[338780875,1726912244127,-1333.11,0.00014384,2]
[338780876,1726912244137,-229.242389,0.00014401,2]
[338780877,1726912244146,-150.0,0.0001442,2]
[338780878,1726912244155,-18586.7028964,0.00014477,2]
[338780879,1726912244164,-18586.7028964,0.0001448,2]
[338780880,1726912244174,-37173.4057928,0.00014487,2]
[338780881,1726912244183,-500.0,0.00014497,2]
[338780882,1726912244191,-500.0,0.00014497,2]
[338780883,1726912244201,-3770.56,0.00014497,2]
[338780884,1726912244211,-235.8363268,0.00014497,2]
[338780885,1726912244220,-5480.71,0.00014497,2]
[338780886,1726912244230,-2821.7,0.00014497,2]
[338780887,1726912244240,-4290.93,0.00014497,2]
[338780888,1726912244249,-13331.55,0.00014497,2]
[338780889,1726912244258,-500.0,0.00014497,2]
[338780890,1726912244268,-500.0,0.00014497,2]
[338780891,1726912244277,-500.0,0.00014497,2]
[338780892,1726912244286,-500.0,0.00014497,2]
[338780893,1726912244296,-500.0,0.00014497,2]
[338780894,1726912244305,-500.0,0.00014497,2]
[338780895,1726912244314,-500.0,0.00014497,2]
[338780896,1726912244324,-816.23,0.00014497,2]
[338780897,1726912244333,-3994.69,0.00014497,2]
[338780898,1726912244342,-6061.04,0.00014497,2]
[338780899,1726912244352,-9951.4,0.00014497,2]
[338780900,1726912244361,-6381.8,0.00014497,2]
[338780901,1726912244371,-3103.6,0.00014497,2]
[338780902,1726912244380,-2266.6,0.00014497,2]
[338780903,1726912244389,-500.0,0.00014497,2]
[338780904,1726912244402,-702.11,0.00014497,2]
[338780905,1726912244412,-1142.53387535,0.00014498,2]
[338780906,1726912244421,-5000.0,0.000145,2]
[338780907,1726912244431,-5000.0,0.000145,2]
[338780908,1726912244441,-7492.25389731,0.000145,2]
[338780909,1726912244451,-294.782,0.000145,2]
[338780910,1726912244461,-1007.7,0.000145,2]
[338780911,1726912244471,-1000.0,0.000145,2]
[338780912,1726912244481,-18586.7028964,0.000145,2]
[338780913,1726912244491,-18586.7028964,0.000145,2]
[338780914,1726912244501,-55760.1086893,0.0001451,2]
[338780915,1726912244510,-500.0,0.0001452,2]
[338780916,1726912244519,-500.0,0.0001452,2]
[338780917,1726912244529,-167.61369389,0.0001452,2]
[338780918,1726912244538,-198.71724158,0.0001452,2]
[338780919,1726912244547,-500.0,0.0001452,2]
[338780920,1726912244557,-500.0,0.0001452,2]
[338780921,1726912244566,-500.0,0.0001452,2]
[338780922,1726912244576,-500.0,0.0001452,2]
[338780923,1726912244586,-500.0,0.0001452,2]
[338780924,1726912244595,-500.0,0.0001452,2]
[338780925,1726912244604,-500.0,0.0001452,2]
[338780926,1726912244613,-500.0,0.0001452,2]
[338780927,1726912244622,-152.88262553,0.0001452,2]
[338780928,1726912244631,-674.02,0.0001452,2]
[338780929,1726912244641,-500.0,0.0001452,2]
[338780930,1726912244650,-674.02,0.0001452,2]
[338780931,1726912244659,-674.02,0.0001452,2]
[338780932,1726912244668,-588.7933097,0.0001452,2]
[338780933,1726912244678,-674.02,0.0001452,2]
[338780934,1726912244687,-674.02,0.0001452,2]
[338780935,1726912244696,-674.02,0.0001452,2]
[338780936,1726912244705,-674.02,0.0001452,2]
[338780937,1726912244714,-674.02,0.0001452,2]
[338780938,1726912244723,-674.02,0.0001452,2]
[338780939,1726912244732,-500.0,0.0001452,2]
[338780940,1726912244741,-500.0,0.0001452,2]
[338780941,1726912244751,-305.6,0.0001452,2]
[338780942,1726912244760,-500.0,0.0001452,2]
[338780943,1726912244769,-500.0,0.0001452,2]
[338780944,1726912244778,-500.0,0.0001452,2]
[338780945,1726912244788,-500.0,0.0001452,2]
[338780946,1726912244797,-500.0,0.0001452,2]
[338780947,1726912244806,-500.0,0.0001452,2]
[338780948,1726912244816,-500.0,0.0001452,2]
[338780949,1726912244825,-252.87672424,0.0001452,2]
[338780950,1726912244834,-320.50073032,0.0001452,2]
[338780951,1726912244844,-500.0,0.0001452,2]
[338780952,1726912244853,-500.0,0.0001452,2]
[338780953,1726912244862,-500.0,0.0001452,2]
[338780954,1726912244872,-500.0,0.0001452,2]
[338780955,1726912244881,-500.0,0.0001452,2]
[338780956,1726912244890,-500.0,0.0001452,2]
[338780957,1726912244899,-500.0,0.0001452,2]
[338780958,1726912244909,-500.0,0.0001452,2]
[338780959,1726912244918,-500.0,0.0001452,2]
[338780960,1726912244928,-500.0,0.0001452,2]
[338780961,1726912244937,-500.0,0.0001452,2]
[338780962,1726912244946,-500.0,0.0001452,2]
[338780963,1726912245221,-500.0,0.0001452,2]
[338780964,1726912245233,-500.0,0.0001452,2]
[338780965,1726912245243,-500.0,0.0001452,2]
[338780966,1726912245254,-500.0,0.0001452,2]
[338780967,1726912245263,-428.59464079,0.0001452,2]
[338780968,1726912245272,-500.0,0.0001452,2]
[338780969,1726912245282,-500.0,0.0001452,2]